[Event "Marmaris Karya-19 GM-May 2022"]
[Site "Icmeler-Marmaris"]
[Date "2022.05.16"]
[Round "9.1"]
[White "Caglar, Sila"]
[Black "Maghalashvili, Davit"]
[Result "0-1"]
[ECO "B22"]
[WhiteElo "2133"]
[BlackElo "2456"]
[Annotator "TA"]
[PlyCount "80"]
[EventDate "2022.05.15"]
[EventType "schev"]
[EventCountry "TUR"]
[SourceTitle "playchess.com"]
[Source "ChessBase"]
[SourceQuality "1"]
[TimeControl "5400+30"]

{[%evp 15,80,-3,25,2,0,-28,-26,-30,-18,-34,-32,-47,-42,-44,-46,-45,-25,-20,-14,-72,-76,-77,-65,-78,-74,-74,-66,-55,-67,-112,-104,-92,-89,-203,-200,-193,-194,-264,-240,-233,-233,-358,-350,-579,-618,-612,-602,-593,-581,-816,-789,-854,-702,-645,-333,-328,-338,-338,-340,-520,-527,-501,-462,-468,-460,-460,-450]} 1. e4 {[%emt 0:12:00]} c5 {[%emt 0:01:00]} 2. c3 {[%emt 0:00:00]} Nf6 {[%emt 0:00:00]} 3. e5 {[%emt 0:00:00]} Nd5 {[%emt 0:00:00]} 4. Nf3 {[%emt 0:00:00]} Nc6 {[%emt 0:00:00]} 5. d4 {[%emt 0:00:00]} cxd4 {[%emt 0:00:00]} 6. cxd4 {[%emt 0:00:30]} d6 {[%emt 0:00:30]} 7. Bc4 {[%emt 0:00:00]} Nb6 {[%emt 0:00:30]} 8. Bb5 {[%emt 0:00:00]} Bd7 {[%emt 0:00:30][%cal Oc6e5]} 9. exd6 {[%emt 0:06:30] B22: Sicilian: 2 c3.} e6 {[%emt 0:02:30]} 10. Bf4 {[%emt 0:00:30]} Nd5 {[%emt 0:00:30]} 11. Bd2 {[%emt 0:01:30] Black has an edge.} Bxd6 {[%emt 0:02:30]} 12. Nc3 {[%emt 0:00:30] [#]} Nce7 $146 {[%emt 0:01:30]} ({Predecessor:} 12... O-O 13. Nxd5 exd5 14. O-O Qb6 15. Qb3 a6 16. Bc4 Qxb3 17. Bxb3 Be6 18. Rfe1 Rac8 19. Rac1 b5 20. a3 a5 {1-0 (24) Grandolio,J-Poblete Mella,L Parana 2007}) 13. Bc4 {[%emt 0:00:30]} Bc6 {[%emt 0:01:30]} 14. O-O {[%emt 0:00:30]} O-O {[%emt 0:00:30][%cal Bh8f8,Bf8d8,Bd8d5,Bd5a5][%mdl 32]} 15. Ne5 {[%emt 0:01:30]} Bxe5 {[%emt 0:02:30]} 16. dxe5 {[%emt 0:00:30]} Ng6 {[%emt 0:01:30]} 17. Re1 {[%emt 0:00:00]} (17. Bxd5 $11 {remains equal.} exd5 18. Be3) 17... Nxc3 $17 {[%emt 0:04:30]} 18. bxc3 {[%emt 0:01:00]} Qh4 {[%emt 0:04:30]} 19. Bf1 {[%emt 0:01:30]} Rfd8 {[%emt 0:00:30]} 20. Qc1 {[%emt 0:05:30]} Qg4 {[%emt 0:08:30][%cal Oc6g2] Hoping for ...Bxg2!} 21. h3 {[%emt 0:01:30]} Qf5 {[%emt 0:05:30]} 22. Bg5 {[%emt 0:09:30] [#] Black continues to play with concentration.} Nxe5 $1 {[%emt 0:01:30][%cal Oe5f3] aiming for ...Nf3+!} 23. Qe3 {[%emt 0:02:30] Against Nf3+} Rd5 $36 {[%emt 0:06:30][%cal Oe5f3][%mdl 2048] White must now prevent ...Nf3+! Black has strong initiative. Black is much more active.} 24. f4 {[%emt 0:04:30] [#]} (24. Bh4 $17) 24... Ng6 $1 $19 {[%emt 0:06:30] And now ...h6 would win.} 25. g4 {[%emt 0:10:30]} Qc2 {[%emt 0:00:30] ...h6 is the strong threat.} 26. Rec1 {[%emt 0:00:30]} (26. Rac1 {is a better defense.} Qb2 27. Rb1) 26... Qa4 {[%emt 0:00:30]} 27. c4 {[%emt 0:00:00]} Ra5 {[%emt 0:04:30]} 28. Bd3 {[%emt 0:08:00]} (28. Rd1 $142) 28... Qa3 {[%emt 0:05:30]} 29. Kf2 $2 {[%emt 0:04:30]} (29. Re1 {was forced.}) 29... h6 {[%emt 0:01:30]} 30. Bxg6 {[%emt 0:00:00]} hxg5 {[%emt 0:00:30]} 31. Bc2 {[%emt 0:01:00]} gxf4 {[%emt 0:00:30]} 32. Qxf4 {[%emt 0:00:30]} Qxh3 {[%emt 0:00:30] Strongly threatening ...Qg2+.} 33. Rg1 {[%emt 0:00:30] Inhibits Qg2+.} Qh4+ {[%emt 0:03:30]} 34. Ke2 {[%emt 0:00:30]} Qg5 {[%emt 0:02:30]} 35. Qxg5 {[%emt 0:02:30]} Rxg5 {[%emt 0:00:30]} 36. Raf1 {[%emt 0:00:00]} Rd8 {[%emt 0:00:30] Threatens to win with ...Re5+.} 37. Rf4 {[%emt 0:00:00]} (37. Rg3 $142) 37... Re5+ {[%emt 0:00:30] Black is clearly winning.} 38. Kf1 {[%emt 0:00:30]} Rd2 {[%emt 0:00:30]} 39. Rf2 {[%emt 0:00:00]} Rd4 {[%emt 0:00:30]} 40. Bb3 {[%emt 0:00:00]} a5 {[%emt 0:00:30] Weighted Error Value: White=0.45/Black=0.16 (very precise)} 0-1

[Event "Marmaris Karya-19 GM-May 2022"]
[Site "Icmeler-Marmaris"]
[Date "2022.05.16"]
[Round "9.2"]
[White "Gunduz, Umut Erdem"]
[Black "Gholami, Aryan"]
[Result "1-0"]
[ECO "B48"]
[WhiteElo "2316"]
[BlackElo "2530"]
[Annotator "TA"]
[PlyCount "89"]
[EventDate "2022.05.15"]
[EventType "schev"]
[EventCountry "TUR"]
[SourceTitle "playchess.com"]
[Source "ChessBase"]
[SourceQuality "1"]
[TimeControl "5400+30"]

{[%evp 17,89,15,20,0,0,0,0,0,0,0,0,0,0,-16,20,27,16,19,20,14,23,25,30,-41,-16,-16,-16,-16,0,0,0,-9,0,0,0,0,303,279,402,370,474,411,759,755,725,731,772,818,816,816,795,790,1194,1118,2470,2470,2380,2146,2370,1832,29980,29981,29981,29973,29971,29972,29962,6008,5173,2398,2395,2341,2139,2012]} 1. e4 {[%emt 0:20:00]} c5 {[%emt 0:03:00]} 2. Nf3 {[%emt 0:00:30]} e6 {[%emt 0:00:30]} 3. d4 {[%emt 0:00:30]} cxd4 {[%emt 0:00:30]} 4. Nxd4 {[%emt 0:00:30]} a6 {[%emt 0:00:30]} 5. Nc3 {[%emt 0:00:00]} Qc7 {[%emt 0:00:00]} 6. Bd3 {[%emt 0:00:00]} Nc6 {[%emt 0:00:00]} 7. Be3 {[%emt 0:00:30]} Nf6 {[%emt 0:00:30]} 8. O-O {[%emt 0:00:30]} Bd6 {[%emt 0:00:30]} 9. h3 {[%emt 0:01:30]} b5 {[%emt 0:01:30]} 10. Nxc6 {[%emt 0:02:30] B48: Sicilian: Taimanov: 5 Nc3 Qc7 6 Be3 a6 without Be2.} dxc6 {[%emt 0:00:30]} 11. f4 {[%emt 0:00:30] Black must now prevent e5.} e5 {[%emt 0:00:30][%cal Re5f4]} 12. f5 {[%emt 0:00:30] The position is equal.} Bb7 {[%emt 0:00:30]} 13. a4 {[%emt 0:04:30][%cal Ra4b5]} Qe7 {[%emt 0:08:30]} 14. Qf3 {[%emt 0:03:30]} Bc5 {[%emt 0:00:30] [#]} 15. g4 $146 {[%emt 0:07:30][%cal Ra4b5]} ({Predecessor:} 15. Qf2 Bxe3 16. Qxe3 b4 17. Ne2 c5 18. Ng3 O-O 19. b3 Rfd8 20. Rad1 Rd7 21. Rf2 {0-1 (35) Harman,K (1938)-Brotherton,T (1945) ICCF email 2011}) 15... h5 {[%emt 0:04:30]} 16. g5 {[%emt 0:01:30]} ({Don't play} 16. axb5 hxg4 17. Bxc5 Qxc5+ 18. Qf2 Qxf2+ 19. Kxf2 cxb5 20. hxg4 Nxg4+ 21. Ke2 Nf6 $17) 16... Nd7 {[%emt 0:05:30]} 17. h4 {[%emt 0:00:30][%cal Ra4b5]} f6 {[%emt 0:00:00]} 18. g6 {[%emt 0:01:30]} O-O-O {[%emt 0:00:00]} 19. Rfd1 {[%emt 0:01:30]} Bd4 {[%emt 0:05:30]} 20. Rd2 {[%emt 0:11:30]} (20. axb5 $11 axb5 21. Kg2) 20... Qb4 {[%emt 0:01:30][%csl LRb2,LRc3]} 21. Ne2 {[%emt 0:08:30][%cal Bc3e2,Be2g3,Bg3h5][%mdl 32]} Qxb2 {[%emt 0:03:30]} 22. Rdd1 {[%emt 0:00:30] Hoping for Bxd4.} Bxe3+ {[%emt 0:01:30]} 23. Qxe3 {[%emt 0:00:30]} Qb4 {[%emt 0:00:30]} 24. Ng3 {[%emt 0:01:30]} Nc5 {[%emt 0:10:30]} (24... bxa4 25. Rdb1 Qc5 26. Kf2) 25. axb5 {[%emt 0:02:30]} axb5 {[%emt 0:00:30]} 26. Be2 {[%emt 0:01:30] And now c3 would win.} Na4 {[%emt 0:02:30][%mdl 8192] [#] Inhibits c3. White stays focused until the end.} (26... Rxd1+ $1 $11 {and Black is okay.} 27. Rxd1 Rg8) 27. Rxd8+ $1 $18 {[%emt 0:05:30]} Rxd8 {[%emt 0:00:30]} (27... Kxd8 {was worth a try.} 28. Nxh5 c5) 28. Nxh5 {[%emt 0:00:30]} Nc3 {[%emt 0:02:30]} 29. Bf3 {[%emt 0:00:30]} (29. Nxg7 Nxe2+ 30. Qxe2 Qd4+ 31. Kh2 Qxa1 $11) 29... Qb2 {[%emt 0:05:30]} (29... Rd7 $142 30. Nxg7 Rxg7) 30. Re1 {[%emt 0:00:30]} Qxc2 {[%emt 0:02:30]} 31. Rc1 {[%emt 0:00:30]} Nd1 {[%emt 0:02:30]} 32. Rxc2 {[%emt 0:00:30]} Nxe3 {[%emt 0:00:30]} 33. Rc3 {[%emt 0:02:30]} Nc4 {[%emt 0:00:30]} 34. Nxg7 {[%emt 0:00:30]} Ba6 {[%emt 0:03:30]} 35. Ne6 {[%emt 0:01:30]} b4 {[%emt 0:00:00]} 36. Nxd8 {[%emt 0:01:30][%cal Od8e6]} bxc3 {[%emt 0:00:00][%mdl 4096] Endgame [#] KBN-KBN} 37. Bd1 $1 {[%emt 0:00:30]} Ne3 {[%emt 0:00:30]} (37... Kxd8 38. g7) 38. g7 {[%emt 0:00:30] White threatens Ne6 and mate.} Nxd1 {[%emt 0:01:30]} 39. g8=Q {[%emt 0:00:30]} c2 {[%emt 0:00:00]} 40. Ne6+ {[%emt 0:00:30]} Kb7 {[%emt 0:00:00]} 41. Nc5+ {[%emt 0:00:30]} Kb6 {[%emt 0:00:00]} 42. Nb3 {[%emt 0:00:00]} Nc3 {[%emt 0:00:00] White is clearly winning.} 43. Nc1 {[%emt 0:01:00] White wants to mate with Qb3+.} Nxe4 {[%emt 0:01:30]} 44. Qb3+ {[%emt 0:00:30]} Bb5 {[%emt 0:00:00]} 45. Qxc2 {[%emt 0:00:30] Weighted Error Value: White=0.07 (flawless) /Black=0.55} 1-0

[Event "Marmaris Karya-19 GM-May 2022"]
[Site "Icmeler-Marmaris"]
[Date "2022.05.16"]
[Round "9.3"]
[White "Ozsakallioglu, Okan"]
[Black "Sevdimaliyev, Urfan"]
[Result "1/2-1/2"]
[ECO "B29"]
[WhiteElo "2312"]
[BlackElo "2331"]
[Annotator "TA"]
[PlyCount "67"]
[EventDate "2022.05.15"]
[EventType "schev"]
[EventCountry "TUR"]
[SourceTitle "playchess.com"]
[Source "ChessBase"]
[SourceQuality "1"]
[TimeControl "5400+30"]

{[%evp 20,67,36,36,56,32,35,43,45,11,20,0,0,0,58,61,45,41,42,16,23,5,6,6,0,0,0,4,17,0,0,-7,-6,-7,0,-5,-4,-11,-6,-23,-19,-19,-10,-15,0,0,0,0,0,0]} 1. e4 {[%emt 0:22:00]} c5 {[%emt 0:01:00]} 2. Nf3 {[%emt 0:02:30]} Nf6 {[%emt 0:00:30]} 3. e5 {[%emt 0:00:30]} Nd5 {[%emt 0:00:30]} 4. Nc3 {[%emt 0:00:00]} e6 {[%emt 0:00:30]} 5. Nxd5 {[%emt 0:00:00]} exd5 {[%emt 0:00:00]} 6. d4 {[%emt 0:00:30]} Nc6 {[%emt 0:01:00]} 7. dxc5 {[%emt 0:01:30]} Bxc5 {[%emt 0:01:30]} 8. Qxd5 {[%emt 0:04:30]} d6 {[%emt 0:05:30]} 9. exd6 {[%emt 0:02:30]} Qb6 {[%emt 0:00:30]} 10. Qe4+ {[%emt 0:07:30]} Be6 {[%emt 0:00:30]} 11. Qh4 {[%emt 0:00:30]} Bxd6 {[%emt 0:00:30] B29: Sicilian: 2 Nf3 Nf6 (Nimzowitsch Variation).} 12. Bd3 {[%emt 0:01:30]} (12. Be2 $5 {[%cal Re1g1]}) 12... Nb4 {[%emt 0:10:30]} 13. O-O {[%emt 0:00:30] Threatens to win with Be3.} Nxd3 {[%emt 0:01:30] White is slightly better.} 14. cxd3 {[%emt 0:00:30]} O-O {[%emt 0:03:30]} 15. b3 {[%emt 0:01:30][%cal Bb2b3,Bb3b4][%mdl 32]} Qa6 {[%emt 0:10:30]} 16. Bb2 {[%emt 0:00:30] [#] aiming for Ng5.} Ba3 $146 {[%emt 0:05:30]} ({Black should try} 16... f6 $11) ({Predecessor:} 16... f6 17. Nd4 Bd7 18. Qe4 Be5 {½-½ (18) Nogerbek,K (2341)-Kazakov,K (2369) Almaty 2019}) 17. Bxa3 $14 {[%emt 0:01:30]} Qxa3 {[%emt 0:00:30]} 18. Qe4 {[%emt 0:00:30] Strongly threatening Ng5.} Qa5 {[%emt 0:03:30] Prevents Ng5.} 19. b4 {[%emt 0:02:30]} Qh5 {[%emt 0:01:30]} 20. Nd4 {[%emt 0:00:00]} Bd5 {[%emt 0:02:30]} 21. Qf5 {[%emt 0:00:00]} Qxf5 {[%emt 0:01:30]} 22. Nxf5 {[%emt 0:00:00] Black must now prevent Ne7+.} Rfd8 {[%emt 0:01:30]} 23. Rfd1 {[%emt 0:03:00]} a5 {[%emt 0:05:30]} 24. b5 {[%emt 0:02:30]} a4 {[%emt 0:04:30]} 25. Rd2 {[%emt 0:05:30]} Ra5 {[%emt 0:16:30]} 26. Rb1 {[%emt 0:01:30] [#]} Bc4 $1 {[%emt 0:05:25]} 27. d4 {[%emt 0:01:30][%cal Od4d5]} ({Of course not} 27. Ne7+ Kf8 28. Nf5 Rxd3 $15) (27. Ne3 Rxb5) 27... Rxb5 {[%emt 0:00:56]} 28. Rxb5 {[%emt 0:00:00]} Bxb5 $11 {[%emt 0:00:01][%mdl 4096] Endgame KRB-KRN} 29. f4 {[%emt 0:03:00]} Bd7 {[%emt 0:01:41]} 30. Ne3 {[%emt 0:00:00] The position is equal.} b5 {[%emt 0:01:00]} 31. a3 {[%emt 0:00:00]} Rc8 {[%emt 0:00:36] Hoping for ...Rc3.} 32. Rc2 {[%emt 0:00:30] Against Rc3} Kf8 {[%emt 0:01:34]} 33. Rxc8+ {[%emt 0:00:30]} Bxc8 {[%emt 0:00:00]} 34. Nc2 {[%emt 0:00:00] Weighted Error Value: White=0.07 (flawless) /Black=0.07 (flawless)} 1/2-1/2

[Event "Marmaris Karya-19 GM-May 2022"]
[Site "Icmeler-Marmaris"]
[Date "2022.05.16"]
[Round "9.5"]
[White "Ozdemir, Serhan Berat"]
[Black "Toufighi, Homayoon"]
[Result "0-1"]
[ECO "C41"]
[WhiteElo "2117"]
[BlackElo "2439"]
[Annotator "TA"]
[PlyCount "104"]
[EventDate "2022.05.15"]
[EventType "schev"]
[EventCountry "TUR"]
[SourceTitle "playchess.com"]
[Source "ChessBase"]
[SourceQuality "1"]
[TimeControl "5400+30"]

{[%evp 9,104,-35,70,-47,-45,-52,-34,-55,-51,-48,-26,-63,-46,-49,-6,-61,-30,-52,-35,-34,0,-33,-25,-56,-62,-54,-36,-36,-68,-61,-37,-72,-44,-43,-42,-35,-45,-49,0,0,0,0,0,0,186,186,176,-40,0,0,0,0,0,0,0,0,0,-13,0,0,0,0,0,0,0,0,0,-8,0,0,0,-2,-4,-68,-68,-101,0,-89,-87,-74,-74,-74,-76,-88,-68,-67,-81,-111,-103,-208,-177,-346,-319,-1094,-1195,-1088,-568]} 1. e4 {[%emt 0:27:00]} e5 {[%emt 0:01:00]} 2. Nf3 {[%emt 0:00:30]} d6 {[%emt 0:00:00]} 3. d4 {[%emt 0:00:30]} Nd7 {[%emt 0:00:00]} 4. Nc3 {[%emt 0:00:00]} Ngf6 {[%emt 0:00:30]} 5. g4 {[%emt 0:00:00]} exd4 {[%emt 0:01:30]} (5... Nxg4 $15 6. Rg1 exd4) 6. Qxd4 {[%emt 0:05:30] C41: Philidor Defence.} (6. Nxd4 $14 h6 7. Be2) 6... Nxg4 $15 {[%emt 0:06:30]} 7. Rg1 {[%emt 0:04:30]} Nge5 {[%emt 0:01:30]} 8. Nxe5 {[%emt 0:00:30] Black is slightly better.} dxe5 {[%emt 0:00:30] [#]} 9. Qd3 $146 {[%emt 0:01:30]} ({Predecessor:} 9. Qe3 c6 10. Bc4 b5 11. Bb3 Nc5 12. Qg3 Qc7 13. Be3 Nxb3 14. cxb3 f6 15. f4 {½-½ (30) Mondrzycki,B (2018)-Bebel,A (2152) Wroclaw 2008}) 9... c6 {[%emt 0:00:30]} 10. Bg5 {[%emt 0:00:30]} f6 {[%emt 0:00:30]} 11. Bd2 {[%emt 0:00:30]} Nc5 {[%emt 0:03:30]} 12. Qf3 {[%emt 0:14:30]} (12. Qg3 $1 $11) 12... Be6 {[%emt 0:01:30]} 13. O-O-O $1 {[%emt 0:00:30]} Qe7 {[%emt 0:01:30]} 14. Be3 {[%emt 0:00:30]} Nd7 {[%emt 0:00:00]} 15. Qg3 {[%emt 0:02:30]} g6 {[%emt 0:01:00]} 16. f4 {[%emt 0:00:30]} Bh6 {[%emt 0:00:30]} 17. f5 {[%emt 0:00:30]} Bxe3+ {[%emt 0:00:30]} 18. Qxe3 {[%emt 0:00:30]} gxf5 {[%emt 0:01:30]} 19. exf5 {[%emt 0:00:00]} Bxf5 {[%emt 0:00:00][%cal Be6f5,Bf5g6,Bg6f7][%mdl 32]} 20. Be2 {[%emt 0:09:00]} Bg6 {[%emt 0:03:00]} 21. h4 $1 {[%emt 0:08:30]} f5 {[%emt 0:06:30]} 22. h5 {[%emt 0:06:25]} Bf7 {[%emt 0:00:00]} (22... f4 23. Qh3 Bf7 24. Rg7 $16) 23. Rg7 {[%emt 0:00:32]} Qf6 {[%emt 0:00:00]} (23... Rg8 $1 $15 {feels stronger.} 24. Rxh7 f4) 24. h6 $11 {[%emt 0:01:02] Rf1 is the strong threat.} O-O-O {[%emt 0:00:30]} 25. Ne4 $1 {[%emt 0:00:27]} fxe4 {[%emt 0:04:30]} 26. Rf1 {[%emt 0:00:23][%mdl 64] Deflection} Qd6 {[%emt 0:01:30]} 27. Rfxf7 $18 {[%emt 0:02:43]} Rhf8 {[%emt 0:00:00]} 28. Bg4 $2 {[%emt 0:02:47]} ({White has to play} 28. Rxh7 $18 {Black must now prevent Bg4.} Nc5 29. Kb1) 28... Rxf7 $15 {[%emt 0:01:00]} 29. Rxf7 {[%emt 0:00:05]} Kb8 {[%emt 0:00:00] aiming for ...Nb6.} 30. Bxd7 {[%emt 0:08:45]} Rxd7 {[%emt 0:00:00]} 31. Rxd7 {[%emt 0:00:04]} Qxd7 {[%emt 0:00:00]} 32. Qxe4 $11 {[%emt 0:00:01][%mdl 4096] Endgame KQ-KQ} Qe7 {[%emt 0:00:00]} 33. Qg4 {[%emt 0:00:05]} Kc7 {[%emt 0:00:30]} 34. Qg7 {[%emt 0:00:30]} Kd6 {[%emt 0:00:30]} 35. Kd2 {[%emt 0:00:25]} Ke6 {[%emt 0:00:00]} 36. Qg4+ {[%emt 0:00:08]} Kd6 {[%emt 0:01:00]} 37. Qg7 {[%emt 0:01:08]} Qd7 {[%emt 0:00:30]} 38. Qf6+ {[%emt 0:01:55]} Qe6 {[%emt 0:00:00]} 39. Qd8+ {[%emt 0:00:26]} Qd7 {[%emt 0:02:00]} 40. Qf6+ {[%emt 0:00:06]} Kd5 {[%emt 0:00:30] With the idea ...Ke4+.} 41. Qf3+ {[%emt 0:01:40]} ({White should play} 41. Kc1 $11) 41... Ke6+ $15 {[%emt 0:00:30]} 42. Ke2 {[%emt 0:00:55]} Qd4 {[%emt 0:00:30]} ({Better is} 42... Qf7 $17 {Strongly threatening ...Qxf3+.} 43. Qh3+ Kf6) 43. Qf8 {[%emt 0:00:41]} (43. Qb3+ $11 Kd6 44. Qxb7) 43... Qe4+ {[%emt 0:00:30]} ({Much weaker is} 43... Qxb2 $6 44. Qg8+ Kf6 45. Qg7+ Kf5 46. Qxh7+ Kg5 47. Qg7+ Kf5 48. Qh7+ Kg5 49. Qg7+ Kf5 50. h7 Qxc2+ 51. Kf1 Qc4+ 52. Kg1 Qd4+ 53. Kg2 Qe4+ 54. Kf2 Qh4+ 55. Kg2 Qe4+ 56. Kf2 Qh4+ 57. Kg2 Qe4+ $11) 44. Kd1 {[%emt 0:00:00]} Qg4+ {[%emt 0:00:30]} 45. Ke1 {[%emt 0:00:09] White wants to mate with Qc8+.} Qh4+ {[%emt 0:00:30]} 46. Ke2 {[%emt 0:00:43]} Qe7 {[%emt 0:00:00]} 47. Qg8+ {[%emt 0:00:23]} Kf6 {[%emt 0:00:00]} 48. Qg4 {[%emt 0:02:23]} Qf7 $1 {[%emt 0:00:30]} 49. Kf3 {[%emt 0:01:36]} (49. Ke1 $17 {is a better defense.}) 49... Qg6 {[%emt 0:00:30]} (49... Qxa2 50. Qg7+ Kf5 51. Qxh7+ Kg5 52. Qg7+ Kf5 53. Qg4+ Kf6 54. h7 Qd5+ 55. Kg3 $18) 50. Qh4+ {[%emt 0:00:04] [#]} (50. Qb4 {was the only defense.}) 50... Qg5 $1 $19 {[%emt 0:00:00]} 51. Qb4 {[%emt 0:00:02] [#]} (51. Qh1) 51... Qf4+ $1 {[%emt 0:00:00]} 52. Qxf4+ {[%emt 0:00:13]} exf4 {[%emt 0:00:30] Black used his chance.  Weighted Error Value: White=0.45/Black=0.20 (precise)} 0-1

[Event "Marmaris Karya-19 GM-May 2022"]
[Site "Icmeler-Marmaris"]
[Date "2022.05.16"]
[Round "10.1"]
[White "Gholami, Aryan"]
[Black "Caglar, Sila"]
[Result "0-1"]
[ECO "D02"]
[WhiteElo "2530"]
[BlackElo "2133"]
[Annotator "TA"]
[PlyCount "108"]
[EventDate "2022.05.15"]
[EventType "schev"]
[EventCountry "TUR"]
[SourceTitle "playchess.com"]
[Source "ChessBase"]
[SourceQuality "1"]
[TimeControl "5400+30"]

{[%evp 9,108,24,46,39,49,38,22,8,25,1,13,4,22,5,13,-32,-30,-22,0,-18,-21,-42,0,-1,-12,-40,-41,-27,-44,-29,-28,-25,-20,-54,-49,-52,-55,-70,-74,-87,-56,-91,-89,-103,-51,-101,-58,-80,-48,-93,-62,-42,-14,-138,-85,-265,-239,-333,-331,-334,-335,-347,-341,-335,-252,-305,-201,-476,-504,-500,-487,-470,-469,-533,-559,-540,-521,-510,-508,-820,-469,-469,-218,-469,-469,-469,-462,-462,-462,-446,-438,-431,-401,-258,-256,-5608,-5165,-5312,-4831,-29988,-29989]} 1. Nf3 {[%emt 0:01:00]} d5 {[%emt 0:06:00]} 2. g3 {[%emt 0:00:30]} Nc6 {[%emt 0:00:30]} 3. d4 {[%emt 0:00:30]} Bf5 {[%emt 0:00:00]} 4. Bg2 {[%emt 0:00:00]} Nb4 {[%emt 0:00:00]} 5. Na3 {[%emt 0:00:00][%cal Bb1a3,Ba3c2,Bc2e3][%mdl 32]} Nf6 {[%emt 0:00:30]} 6. c3 {[%emt 0:01:30] D02: 1 d4 d5 2 Nf3 sidelines, including 2...Nf6 3 g3 and 2...Nf6 3 Bf4.} (6. Ne5 {is more complex.} e6 7. c3 Nc6 8. Nxc6 bxc6 9. Qa4) 6... Nc6 {[%emt 0:00:00]} 7. O-O {[%emt 0:00:30]} e6 {[%emt 0:00:00]} 8. Nc2 {[%emt 0:00:30] The position is equal.} Be7 {[%emt 0:02:30]} 9. b3 {[%emt 0:00:30]} O-O {[%emt 0:00:00]} 10. Bb2 {[%emt 0:00:30] [#]} b5 $146 {[%emt 0:01:00]} ({Predecessor:} 10... Be4 11. Nce1 a5 12. a4 Nd7 13. Bh3 Bf6 14. Nd2 Bg6 15. Ng2 Bf5 16. Bxf5 exf5 {½-½ (37) Tratar,M (2456)-Costachi,M (2425) Antalya 2017}) 11. Nh4 {[%emt 0:00:30][%cal Bf3h4,Bh4g2,Bg2f4][%mdl 32]} Be4 {[%emt 0:00:30]} 12. Ne3 {[%emt 0:03:30]} Bxg2 {[%emt 0:00:30]} 13. Nhxg2 {[%emt 0:00:30]} a5 {[%emt 0:00:00][%cal Ba7a5,Ba5a4,Ba4a3][%mdl 32]} 14. Nf4 {[%emt 0:01:30]} a4 {[%emt 0:02:00]} 15. Nd3 {[%emt 0:01:30]} a3 {[%emt 0:01:30]} 16. Bc1 {[%emt 0:00:30]} Ne4 {[%emt 0:00:00]} 17. Bd2 {[%emt 0:02:30]} b4 {[%emt 0:00:00]} 18. Nxb4 {[%emt 0:02:30]} Bxb4 {[%emt 0:01:30]} 19. cxb4 {[%emt 0:00:30]} Nxd4 {[%emt 0:00:30]} 20. Be1 {[%emt 0:00:00]} Nb5 $36 {[%emt 0:00:30][%mdl 2048] Black fights for an advantage.} 21. Qd3 {[%emt 0:00:00]} c6 {[%emt 0:00:00]} 22. f3 {[%emt 0:00:30]} Ned6 {[%emt 0:01:00]} 23. Nc2 {[%emt 0:01:30]} e5 {[%emt 0:00:30]} 24. e4 {[%emt 0:00:30]} Qb6+ {[%emt 0:04:30]} 25. Bf2 {[%emt 0:03:30]} d4 {[%emt 0:00:30]} 26. Be1 {[%emt 0:01:30]} Rad8 {[%emt 0:00:30]} (26... Rae8 $17) 27. Bd2 {[%emt 0:00:30]} ({White should try} 27. g4 $15) 27... f6 {[%emt 0:01:30][%cal Bf7f6,Bf6f5,Bf5e4][%mdl 32]} 28. Kg2 {[%emt 0:00:30]} Rf7 {[%emt 0:02:30]} 29. Rac1 {[%emt 0:02:30]} Rdf8 {[%emt 0:01:30]} 30. g4 {[%emt 0:01:30]} Rc8 {[%emt 0:02:30]} 31. f4 {[%emt 0:10:30]} (31. Qe2 $11) 31... Re7 {[%emt 0:00:00]} (31... Qb7 $142 {And now ...c5 would win.} 32. Kg1 Qd7) 32. g5 $2 {[%emt 0:02:30] This move loses the game for White.} (32. fxe5 $17 Rxe5 33. Bf4 Rxe4 34. Nxa3 Rxf4 35. Nc4 (35. Rxf4 Nxa3 36. Rxd4 Nf7 $17) 35... Rxf1 36. Nxb6 Rxc1 37. Nxc8 Nxc8 38. a4) 32... f5 $19 {[%emt 0:02:00]} 33. fxe5 {[%emt 0:00:30]} fxe4 {[%emt 0:00:00]} 34. Qg3 {[%emt 0:00:30]} Nf7 {[%emt 0:01:00]} 35. Qg4 {[%emt 0:00:30]} Rce8 {[%emt 0:00:00]} 36. Qxe4 {[%emt 0:00:30]} Rxe5 {[%emt 0:07:00]} 37. Qf4 {[%emt 0:01:30]} Nxg5 {[%emt 0:04:30] Active counter play!} 38. h4 $2 {[%emt 0:01:30]} (38. Rce1 {was the only chance.} Qc7 39. Nxd4 Nxd4 40. Qxd4 Rxe1 41. Rxe1 Rxe1 42. Bxe1 Qxh2+ 43. Kxh2 Nf3+ 44. Kg3 Nxd4 45. b5 cxb5 46. Bb4) 38... Re2+ {[%emt 0:00:30]} 39. Kh1 {[%emt 0:00:30] [#] Hoping for Rce1.} c5 $1 {[%emt 0:01:30]} 40. hxg5 {[%emt 0:00:30] White threatens Qf7+ and mate.} Qb7+ {[%emt 0:01:30]} 41. Qf3 {[%emt 0:00:30]} Qxf3+ {[%emt 0:00:30]} 42. Rxf3 {[%emt 0:00:30] Strongly threatening Rd3.} Rxd2 {[%emt 0:00:30]} 43. bxc5 {[%emt 0:00:00]} Ree2 {[%emt 0:02:30]} 44. Nb4 {[%emt 0:00:00]} (44. Ne1 $142 Rxa2 45. c6) 44... Rh2+ {[%emt 0:00:30]} 45. Kg1 {[%emt 0:00:30]} Rdg2+ {[%emt 0:00:30]} 46. Kf1 {[%emt 0:00:00]} Nc3 {[%emt 0:04:30]} 47. Rfxc3 {[%emt 0:04:00]} dxc3 {[%emt 0:00:30][%mdl 4096] Endgame KRR-KRN} 48. c6 {[%emt 0:00:30]} Rf2+ {[%emt 0:00:30]} 49. Kg1 {[%emt 0:00:30] [#]} Rhg2+ $1 {[%emt 0:00:30]} 50. Kh1 {[%emt 0:00:00]} Rxg5 {[%emt 0:00:30]} 51. c7 {[%emt 0:00:00]} Rc5 {[%emt 0:00:30]} 52. Na6 $2 {[%emt 0:01:30]} (52. Nd3 Rff5 53. Nxc5 Rxc5 54. b4 Rxc7 55. Rc2) 52... Rc6 {[%emt 0:00:30] ( -> ...c2)} 53. b4 {[%emt 0:00:30]} Rb2 {[%emt 0:00:30]} 54. Rd1 {[%emt 0:00:00]} c2 {[%emt 0:00:30] Weighted Error Value: White=0.70/Black=0.20 (precise)} 0-1